[Event "Titled Tuesday Blitz November 14 Early 2023"]
[White "Steinberg, Nitzan"]
[Black "Sokolovsky, Yahli"]
[WhiteFideId "2801795"]
[BlackFideId "2820242"]
[WhiteElo "2898"]
[BlackElo "2770"]
[Result "1-0"]
[Round "10"]
[TimeControl "180+1"]
[Date "2023.11.14"]
[WhiteClock "0:00:16"]
[BlackClock "0:00:01"]
[Board "18"]

1. Nf3 {[%clk 0:02:59]}  g6 {[%clk 0:02:52]} 2. e4 {[%clk 0:02:59]}  Bg7 {[%clk 0:02:53]} 3. d4 {[%clk 0:02:59]}  d6 {[%clk 0:02:54]} 4. Nc3 {[%clk 0:02:59]}  a6 {[%clk 0:02:54]} 5. h4 {[%clk 0:02:57]}  h6 {[%clk 0:02:52]} 6. h5 {[%clk 0:02:55]}  g5 {[%clk 0:02:53]} 7. Be3 {[%clk 0:02:56]}  b5 {[%clk 0:02:53]} 8. a4 {[%clk 0:02:55]}  b4 {[%clk 0:02:52]} 9. Nb1 {[%clk 0:02:53]}  Bb7 {[%clk 0:02:47]} 10. Nbd2 {[%clk 0:02:52]}  Nf6 {[%clk 0:02:44]} 11. Bd3 {[%clk 0:02:53]}  Ng4 {[%clk 0:02:39]} 12. c3 {[%clk 0:02:50]}  bxc3 {[%clk 0:02:37]} 13. bxc3 {[%clk 0:02:50]}  Nd7 {[%clk 0:02:38]} 14. a5 {[%clk 0:02:49]}  c5 {[%clk 0:02:33]} 15. Qe2 {[%clk 0:02:37]}  cxd4 {[%clk 0:02:10]} 16. cxd4 {[%clk 0:02:36]}  Nc5 {[%clk 0:02:10]} 17. Bc2 {[%clk 0:02:23]}  O-O {[%clk 0:01:38]} 18. Rb1 {[%clk 0:02:02]}  Nxe3 {[%clk 0:01:02]} 19. Qxe3 {[%clk 0:01:48]}  Rc8 {[%clk 0:00:42]} 20. dxc5 {[%clk 0:01:42]}  Rxc5 {[%clk 0:00:43]} 21. Bd3 {[%clk 0:00:59]}  Bc8 {[%clk 0:00:27]} 22. Nb3 {[%clk 0:00:57]}  Rc3 {[%clk 0:00:22]} 23. Nfd4 {[%clk 0:00:43]}  Qc7 {[%clk 0:00:05]} 24. O-O {[%clk 0:00:35]}  Qd8 {[%clk 0:00:03]} 25. Rfc1 {[%clk 0:00:33]}  Rxc1+ {[%clk 0:00:03]} 26. Rxc1 {[%clk 0:00:34]}  e5 {[%clk 0:00:04]} 27. Nc6 {[%clk 0:00:28]}  Qe8 {[%clk 0:00:02]} 28. Nd2 {[%clk 0:00:17]}  Bd7 {[%clk 0:00:02]} 29. Nb4 {[%clk 0:00:17]}  Bb5 {[%clk 0:00:03]} 30. Nd5 {[%clk 0:00:18]}  Bxd3 {[%clk 0:00:01]} 31. Qxd3 {[%clk 0:00:18]}  Qe6 {[%clk 0:00:02]} 32. Rc7 {[%clk 0:00:17]}  f5 {[%clk 0:00:02]} 33. exf5 {[%clk 0:00:17]}  Qe8 {[%clk 0:00:01]} 34. f6 {[%clk 0:00:16]}  Bxf6 {[%clk 0:00:01]} 35. Qh7# {[%clk 0:00:16]} 1-0


[Site "https://www.chess.com"]

[Event "Titled Tuesday Blitz November 14 Early 2023"]
[White "Gharibyan, Mamikon"]
[Black "Duda, Jan-Krzysztof"]
[WhiteFideId "13308300"]
[BlackFideId "1170546"]
[WhiteElo "2796"]
[BlackElo "3075"]
[Result "1-0"]
[Round "10"]
[TimeControl "180+1"]
[Date "2023.11.14"]
[WhiteClock "0:00:02"]
[BlackClock "0:00:00"]
[Board "23"]

1. e4 {[%clk 0:02:51]}  c5 {[%clk 0:02:57]} 2. Nf3 {[%clk 0:02:51]}  Nc6 {[%clk 0:02:57]} 3. Bb5 {[%clk 0:02:51]}  e6 {[%clk 0:02:55]} 4. Bxc6 {[%clk 0:02:45]}  bxc6 {[%clk 0:02:56]} 5. d3 {[%clk 0:02:46]}  Ne7 {[%clk 0:02:52]} 6. Qe2 {[%clk 0:02:40]}  d6 {[%clk 0:02:49]} 7. e5 {[%clk 0:02:33]}  Ng6 {[%clk 0:02:50]} 8. h4 {[%clk 0:02:22]}  h5 {[%clk 0:02:18]} 9. exd6 {[%clk 0:02:08]}  Bxd6 {[%clk 0:02:16]} 10. Nc3 {[%clk 0:02:09]}  e5 {[%clk 0:02:08]} 11. Ne4 {[%clk 0:01:41]}  Bg4 {[%clk 0:02:06]} 12. Bg5 {[%clk 0:01:14]}  f6 {[%clk 0:01:30]} 13. Nxd6+ {[%clk 0:01:13]}  Qxd6 {[%clk 0:01:30]} 14. Bd2 {[%clk 0:01:09]}  O-O {[%clk 0:01:24]} 15. Qe4 {[%clk 0:01:06]}  Ne7 {[%clk 0:01:12]} 16. Be3 {[%clk 0:00:51]}  Nd5 {[%clk 0:01:02]} 17. Qc4 {[%clk 0:00:49]}  Rfb8 {[%clk 0:00:57]} 18. Bxc5 {[%clk 0:00:48]}  Qd7 {[%clk 0:00:57]} 19. O-O-O {[%clk 0:00:34]}  Kh8 {[%clk 0:00:56]} 20. Rde1 {[%clk 0:00:21]}  Nf4 {[%clk 0:00:51]} 21. Rhg1 {[%clk 0:00:19]}  a5 {[%clk 0:00:43]} 22. a4 {[%clk 0:00:18]}  Be6 {[%clk 0:00:39]} 23. Qc3 {[%clk 0:00:18]}  Bd5 {[%clk 0:00:16]} 24. Be3 {[%clk 0:00:08]}  Rb4 {[%clk 0:00:08]} 25. b3 {[%clk 0:00:03]}  Ne6 {[%clk 0:00:04]} 26. Nd2 {[%clk 0:00:03]}  Rxh4 {[%clk 0:00:03]} 27. Rh1 {[%clk 0:00:02]}  Rxh1 {[%clk 0:00:03]} 28. Rxh1 {[%clk 0:00:03]}  Qf7 {[%clk 0:00:02]} 29. f3 {[%clk 0:00:03]}  Kg8 {[%clk 0:00:02]} 30. Ne4 {[%clk 0:00:04]}  Nd8 {[%clk 0:00:01]} 31. Rh2 {[%clk 0:00:04]}  Nb7 {[%clk 0:00:02]} 32. Kb2 {[%clk 0:00:04]}  Rb8 {[%clk 0:00:01]} 33. Nc5 {[%clk 0:00:03]}  Nxc5 {[%clk 0:00:01]} 34. Bxc5 {[%clk 0:00:04]}  Ra8 {[%clk 0:00:01]} 35. Be3 {[%clk 0:00:04]}  g5 {[%clk 0:00:02]} 36. Bd2 {[%clk 0:00:04]}  Kg7 {[%clk 0:00:02]} 37. Qc5 {[%clk 0:00:04]}  h4 {[%clk 0:00:03]} 38. Bxa5 {[%clk 0:00:05]}  Qb7 {[%clk 0:00:02]} 39. Bb4 {[%clk 0:00:05]}  Kg6 {[%clk 0:00:02]} 40. Rh1 {[%clk 0:00:04]}  Rb8 {[%clk 0:00:02]} 41. Kc3 {[%clk 0:00:03]}  Qd7 {[%clk 0:00:02]} 42. Re1 {[%clk 0:00:03]}  h3 {[%clk 0:00:02]} 43. gxh3 {[%clk 0:00:04]}  Qxh3 {[%clk 0:00:03]} 44. Qd6 {[%clk 0:00:04]}  Re8 {[%clk 0:00:03]} 45. a5 {[%clk 0:00:04]}  Qxf3 {[%clk 0:00:03]} 46. Bc5 {[%clk 0:00:04]}  Ra8 {[%clk 0:00:01]} 47. Bb6 {[%clk 0:00:04]}  Qf4 {[%clk 0:00:01]} 48. Kb2 {[%clk 0:00:03]}  g4 {[%clk 0:00:02]} 49. d4 {[%clk 0:00:03]}  Qf2 {[%clk 0:00:01]} 50. Rxe5 {[%clk 0:00:04]}  g3 {[%clk 0:00:01]} 51. Qd7 {[%clk 0:00:02]}  g2 {[%clk 0:00:01]} 52. Qg4+ {[%clk 0:00:02]}  Kf7 {[%clk 0:00:00]} 53. Rf5 {[%clk 0:00:02]} 1-0


[Site "https://www.chess.com"]

[Event "Titled Tuesday Blitz November 14 Early 2023"]
[White "Llorente Zaro, Alfonso"]
[Black "Demchenko, Anton"]
[WhiteFideId "2254131"]
[BlackFideId "4160258"]
[WhiteElo "2776"]
[BlackElo "3006"]
[Result "0-1"]
[Round "10"]
[TimeControl "180+1"]
[Date "2023.11.14"]
[WhiteClock "0:00:01"]
[BlackClock "0:00:16"]
[Board "25"]

1. e4 {[%clk 0:03:00]}  e5 {[%clk 0:02:59]} 2. Nf3 {[%clk 0:03:01]}  Nc6 {[%clk 0:02:59]} 3. Nc3 {[%clk 0:03:01]}  Nf6 {[%clk 0:02:59]} 4. h3 {[%clk 0:03:02]}  g6 {[%clk 0:02:58]} 5. d4 {[%clk 0:03:00]}  exd4 {[%clk 0:02:59]} 6. Nxd4 {[%clk 0:03:00]}  Bg7 {[%clk 0:02:59]} 7. Be3 {[%clk 0:03:00]}  O-O {[%clk 0:02:56]} 8. Nxc6 {[%clk 0:02:44]}  bxc6 {[%clk 0:02:55]} 9. e5 {[%clk 0:02:44]}  Ne8 {[%clk 0:02:40]} 10. f4 {[%clk 0:02:43]}  Qh4+ {[%clk 0:02:36]} 11. Kd2 {[%clk 0:02:38]}  d6 {[%clk 0:02:36]} 12. exd6 {[%clk 0:02:33]}  Nxd6 {[%clk 0:02:33]} 13. Qf3 {[%clk 0:02:30]}  Rb8 {[%clk 0:02:29]} 14. Rb1 {[%clk 0:02:23]}  Rd8 {[%clk 0:02:28]} 15. Kc1 {[%clk 0:02:15]}  Bxc3 {[%clk 0:02:20]} 16. Bf2 {[%clk 0:01:59]}  Bd2+ {[%clk 0:01:40]} 17. Kxd2 {[%clk 0:01:13]}  Ne4+ {[%clk 0:01:38]} 18. Ke1 {[%clk 0:01:13]}  Qe7 {[%clk 0:01:31]} 19. Qe3 {[%clk 0:00:48]}  Qb4+ {[%clk 0:01:28]} 20. c3 {[%clk 0:00:48]}  Nxc3 {[%clk 0:01:19]} 21. a3 {[%clk 0:00:48]}  Qa5 {[%clk 0:00:46]} 22. b4 {[%clk 0:00:42]}  Qf5 {[%clk 0:00:39]} 23. Rc1 {[%clk 0:00:38]}  Nd5 {[%clk 0:00:39]} 24. Qe5 {[%clk 0:00:38]}  Qd7 {[%clk 0:00:34]} 25. Qd4 {[%clk 0:00:24]}  Qe8+ {[%clk 0:00:27]} 26. Be2 {[%clk 0:00:22]}  Ba6 {[%clk 0:00:24]} 27. Rc2 {[%clk 0:00:23]}  Nxb4 {[%clk 0:00:18]} 28. Qxb4 {[%clk 0:00:05]}  Rxb4 {[%clk 0:00:17]} 29. axb4 {[%clk 0:00:06]}  Qe4 {[%clk 0:00:17]} 30. Rb2 {[%clk 0:00:01]}  Bxe2 {[%clk 0:00:16]} 0-1


[Site "https://www.chess.com"]

[Event "Titled Tuesday Blitz November 14 Early 2023"]
[White "Maksimovic, Bojan"]
[Black "Ashraf, Artin"]
[WhiteFideId "14408120"]
[BlackFideId "22514805"]
[WhiteElo "2804"]
[BlackElo "2920"]
[Result "0-1"]
[Round "10"]
[TimeControl "180+1"]
[Date "2023.11.14"]
[WhiteClock "0:00:02"]
[BlackClock "0:00:10"]
[Board "26"]

1. Nf3 {[%clk 0:03:00]}  Nf6 {[%clk 0:02:57]} 2. g3 {[%clk 0:03:01]}  e6 {[%clk 0:02:57]} 3. Bg2 {[%clk 0:03:02]}  d5 {[%clk 0:02:58]} 4. O-O {[%clk 0:03:02]}  c5 {[%clk 0:02:58]} 5. d3 {[%clk 0:03:02]}  Nc6 {[%clk 0:02:57]} 6. Nbd2 {[%clk 0:03:03]}  Be7 {[%clk 0:02:53]} 7. e4 {[%clk 0:03:02]}  Qc7 {[%clk 0:02:53]} 8. Re1 {[%clk 0:03:00]}  O-O {[%clk 0:02:53]} 9. c3 {[%clk 0:02:57]}  b5 {[%clk 0:02:39]} 10. h4 {[%clk 0:02:52]}  a5 {[%clk 0:02:38]} 11. exd5 {[%clk 0:02:51]}  exd5 {[%clk 0:02:37]} 12. Nf1 {[%clk 0:02:10]}  h6 {[%clk 0:02:35]} 13. Bf4 {[%clk 0:02:08]}  Bd6 {[%clk 0:02:35]} 14. Bxd6 {[%clk 0:02:08]}  Qxd6 {[%clk 0:02:35]} 15. d4 {[%clk 0:02:08]}  Bg4 {[%clk 0:02:35]} 16. dxc5 {[%clk 0:01:59]}  Qxc5 {[%clk 0:02:35]} 17. Ne3 {[%clk 0:01:59]}  Bh5 {[%clk 0:02:34]} 18. Qd2 {[%clk 0:01:31]}  Rad8 {[%clk 0:02:33]} 19. Nd4 {[%clk 0:01:29]}  Ne4 {[%clk 0:02:30]} 20. Qd3 {[%clk 0:01:24]}  Ne5 {[%clk 0:02:29]} 21. Qxb5 {[%clk 0:01:19]}  Qxb5 {[%clk 0:02:29]} 22. Nxb5 {[%clk 0:01:20]}  Nd3 {[%clk 0:02:29]} 23. Reb1 {[%clk 0:01:03]}  Ndxf2 {[%clk 0:02:18]} 24. Nd4 {[%clk 0:01:01]}  Nd3 {[%clk 0:02:13]} 25. Nxd5 {[%clk 0:00:52]}  Nxg3 {[%clk 0:02:03]} 26. Kh2 {[%clk 0:00:46]}  Ne2 {[%clk 0:02:00]} 27. Nxe2 {[%clk 0:00:46]}  Bxe2 {[%clk 0:02:01]} 28. b4 {[%clk 0:00:45]}  f5 {[%clk 0:01:56]} 29. bxa5 {[%clk 0:00:35]}  f4 {[%clk 0:01:56]} 30. a6 {[%clk 0:00:29]}  f3 {[%clk 0:01:56]} 31. Bh3 {[%clk 0:00:29]}  Kh7 {[%clk 0:01:39]} 32. Nb6 {[%clk 0:00:29]}  Rf4 {[%clk 0:01:19]} 33. a7 {[%clk 0:00:26]}  Rxh4 {[%clk 0:01:13]} 34. Kg3 {[%clk 0:00:20]}  g5 {[%clk 0:00:40]} 35. a8=Q {[%clk 0:00:19]}  Rxa8 {[%clk 0:00:39]} 36. Nxa8 {[%clk 0:00:20]}  Nf4 {[%clk 0:00:40]} 37. Bg4 {[%clk 0:00:16]}  Kg7 {[%clk 0:00:40]} 38. Nc7 {[%clk 0:00:14]}  Kf6 {[%clk 0:00:32]} 39. c4 {[%clk 0:00:12]}  h5 {[%clk 0:00:32]} 40. Bc8 {[%clk 0:00:10]}  Nd3 {[%clk 0:00:29]} 41. Nd5+ {[%clk 0:00:09]}  Ke5 {[%clk 0:00:29]} 42. Rb5 {[%clk 0:00:08]}  Kd4 {[%clk 0:00:26]} 43. Nf6 {[%clk 0:00:07]}  Ke3 {[%clk 0:00:11]} 44. Rxg5 {[%clk 0:00:07]}  Rxc4 {[%clk 0:00:12]} 45. Nd5+ {[%clk 0:00:07]}  Kd2 {[%clk 0:00:11]} 46. Rxh5 {[%clk 0:00:06]}  Rxc8 {[%clk 0:00:11]} 47. Ne7 {[%clk 0:00:03]}  Re8 {[%clk 0:00:08]} 48. Nf5 {[%clk 0:00:04]}  Rg8+ {[%clk 0:00:08]} 49. Kh2 {[%clk 0:00:03]}  Rg2+ {[%clk 0:00:08]} 50. Kh3 {[%clk 0:00:01]}  Nf2+ {[%clk 0:00:09]} 51. Kh4 {[%clk 0:00:02]}  Rg4# {[%clk 0:00:10]} 0-1


[Site "https://www.chess.com"]

[Event "Titled Tuesday Blitz November 14 Early 2023"]
[White "Yeletsky, Ivan"]
[Black "Nigmatov, Ortik"]
[WhiteFideId "24180327"]
[BlackFideId "14202131"]
[WhiteElo "2899"]
[BlackElo "2768"]
[Result "1-0"]
[Round "10"]
[TimeControl "180+1"]
[Date "2023.11.14"]
[WhiteClock "0:00:12"]
[BlackClock "0:00:00"]
[Board "27"]

1. c4 {[%clk 0:03:00]}  e5 {[%clk 0:02:58]} 2. g3 {[%clk 0:03:00]}  Nc6 {[%clk 0:02:58]} 3. Bg2 {[%clk 0:03:00]}  g6 {[%clk 0:02:59]} 4. Nc3 {[%clk 0:03:01]}  Bg7 {[%clk 0:02:59]} 5. Rb1 {[%clk 0:03:00]}  a5 {[%clk 0:02:59]} 6. d3 {[%clk 0:02:58]}  f5 {[%clk 0:02:58]} 7. a3 {[%clk 0:02:57]}  Nf6 {[%clk 0:02:57]} 8. b4 {[%clk 0:02:57]}  axb4 {[%clk 0:02:58]} 9. axb4 {[%clk 0:02:58]}  d6 {[%clk 0:02:57]} 10. e3 {[%clk 0:02:55]}  O-O {[%clk 0:02:56]} 11. Nf3 {[%clk 0:02:48]}  h6 {[%clk 0:02:53]} 12. O-O {[%clk 0:02:46]}  g5 {[%clk 0:02:53]} 13. b5 {[%clk 0:02:43]}  Ne7 {[%clk 0:02:52]} 14. c5 {[%clk 0:02:43]}  Ng6 {[%clk 0:02:49]} 15. b6 {[%clk 0:02:42]}  dxc5 {[%clk 0:02:46]} 16. bxc7 {[%clk 0:02:40]}  Qxc7 {[%clk 0:02:46]} 17. Nd2 {[%clk 0:02:26]}  Kh7 {[%clk 0:02:28]} 18. Nc4 {[%clk 0:02:24]}  Ra6 {[%clk 0:02:26]} 19. Qb3 {[%clk 0:01:59]}  Rf7 {[%clk 0:01:59]} 20. Nb5 {[%clk 0:01:40]}  Qd7 {[%clk 0:01:50]} 21. Nbd6 {[%clk 0:01:17]}  b5 {[%clk 0:01:14]} 22. Nxf7 {[%clk 0:01:13]}  bxc4 {[%clk 0:01:13]} 23. Qxc4 {[%clk 0:01:14]}  Ra7 {[%clk 0:01:13]} 24. Qxc5 {[%clk 0:00:45]}  Qxf7 {[%clk 0:01:12]} 25. Qxc8 {[%clk 0:00:45]}  Nd7 {[%clk 0:00:54]} 26. Bb2 {[%clk 0:00:39]}  Ne7 {[%clk 0:00:48]} 27. Qd8 {[%clk 0:00:38]}  Qe6 {[%clk 0:00:40]} 28. Ra1 {[%clk 0:00:31]}  Rxa1 {[%clk 0:00:30]} 29. Bxa1 {[%clk 0:00:32]}  Nc6 {[%clk 0:00:28]} 30. Qc7 {[%clk 0:00:26]}  Nb4 {[%clk 0:00:27]} 31. g4 {[%clk 0:00:16]}  Nxd3 {[%clk 0:00:19]} 32. gxf5 {[%clk 0:00:15]}  Qxf5 {[%clk 0:00:13]} 33. Qc2 {[%clk 0:00:15]}  e4 {[%clk 0:00:12]} 34. Bxg7 {[%clk 0:00:16]}  Kxg7 {[%clk 0:00:12]} 35. Qc7 {[%clk 0:00:14]}  Kg6 {[%clk 0:00:10]} 36. f3 {[%clk 0:00:14]}  Qc5 {[%clk 0:00:06]} 37. Qxd7 {[%clk 0:00:09]}  Qxe3+ {[%clk 0:00:06]} 38. Kh1 {[%clk 0:00:10]}  Nf2+ {[%clk 0:00:07]} 39. Rxf2 {[%clk 0:00:11]}  Qxf2 {[%clk 0:00:07]} 40. Qe6+ {[%clk 0:00:11]}  Kh5 {[%clk 0:00:00]} 41. Qxe4 {[%clk 0:00:12]} 1-0


[Site "https://www.chess.com"]

[Event "Titled Tuesday Blitz November 14 Early 2023"]
[White "djokovic74"]
[Black "Cherniaiev, Tykhon"]
[BlackFideId "14182360"]
[WhiteElo "2728"]
[BlackElo "2836"]
[Result "0-1"]
[Round "10"]
[TimeControl "180+1"]
[Date "2023.11.14"]
[WhiteClock "0:00:02"]
[BlackClock "0:00:14"]
[Board "31"]

1. e4 {[%clk 0:03:00]}  e5 {[%clk 0:02:59]} 2. Nf3 {[%clk 0:03:00]}  Nc6 {[%clk 0:02:58]} 3. Bb5 {[%clk 0:03:01]}  a6 {[%clk 0:02:56]} 4. Ba4 {[%clk 0:03:00]}  Nge7 {[%clk 0:02:57]} 5. O-O {[%clk 0:02:59]}  Ng6 {[%clk 0:02:57]} 6. c3 {[%clk 0:02:59]}  d5 {[%clk 0:02:57]} 7. Re1 {[%clk 0:02:42]}  Be7 {[%clk 0:02:51]} 8. exd5 {[%clk 0:02:35]}  Qxd5 {[%clk 0:02:52]} 9. d4 {[%clk 0:02:35]}  Bg4 {[%clk 0:02:10]} 10. Bb3 {[%clk 0:01:53]}  Bxf3 {[%clk 0:02:07]} 11. Bxd5 {[%clk 0:01:50]}  Bxd1 {[%clk 0:02:06]} 12. Rxd1 {[%clk 0:01:50]}  exd4 {[%clk 0:02:00]} 13. cxd4 {[%clk 0:01:34]}  O-O-O {[%clk 0:01:53]} 14. Bxc6 {[%clk 0:01:22]}  bxc6 {[%clk 0:01:54]} 15. Be3 {[%clk 0:01:22]}  f5 {[%clk 0:01:43]} 16. f3 {[%clk 0:01:20]}  c5 {[%clk 0:01:32]} 17. Nc3 {[%clk 0:01:15]}  cxd4 {[%clk 0:01:31]} 18. Rxd4 {[%clk 0:01:14]}  Bf6 {[%clk 0:01:31]} 19. Rc4 {[%clk 0:00:43]}  Ne5 {[%clk 0:01:24]} 20. Rc5 {[%clk 0:00:41]}  Nd3 {[%clk 0:01:21]} 21. Rxf5 {[%clk 0:00:41]}  Nxb2 {[%clk 0:01:11]} 22. Nd5 {[%clk 0:00:26]}  Nc4 {[%clk 0:01:05]} 23. Rc1 {[%clk 0:00:03]}  Nxe3 {[%clk 0:00:52]} 24. Nxe3 {[%clk 0:00:03]}  Bd4 {[%clk 0:00:53]} 25. Kf2 {[%clk 0:00:03]}  Rhe8 {[%clk 0:00:53]} 26. Re1 {[%clk 0:00:03]}  Bb6 {[%clk 0:00:49]} 27. Rf4 {[%clk 0:00:02]}  Rd2+ {[%clk 0:00:40]} 28. Kg3 {[%clk 0:00:02]}  Rxe3 {[%clk 0:00:39]} 29. Rc1 {[%clk 0:00:01]}  Ree2 {[%clk 0:00:39]} 30. Kg4 {[%clk 0:00:02]}  Rxg2+ {[%clk 0:00:39]} 31. Kf5 {[%clk 0:00:02]}  Rd5+ {[%clk 0:00:31]} 32. Ke6 {[%clk 0:00:02]}  Rd6+ {[%clk 0:00:31]} 33. Ke7 {[%clk 0:00:02]}  Re2+ {[%clk 0:00:29]} 34. Kf7 {[%clk 0:00:03]}  Rd7+ {[%clk 0:00:29]} 35. Kf8 {[%clk 0:00:02]}  Be3 {[%clk 0:00:21]} 36. Re4 {[%clk 0:00:02]}  Bxc1 {[%clk 0:00:21]} 37. Rxe2 {[%clk 0:00:02]}  g5 {[%clk 0:00:20]} 38. Re4 {[%clk 0:00:02]}  h5 {[%clk 0:00:19]} 39. h4 {[%clk 0:00:02]}  Kb7 {[%clk 0:00:15]} 40. Rc4 {[%clk 0:00:01]}  Bf4 {[%clk 0:00:14]} 41. Rb4+ {[%clk 0:00:00]}  Kc6 {[%clk 0:00:14]} 42. Re4 {[%clk 0:00:01]}  Rd3 {[%clk 0:00:14]} 43. Kf7 {[%clk 0:00:01]}  Rxf3 {[%clk 0:00:13]} 44. Kg6 {[%clk 0:00:02]}  gxh4 {[%clk 0:00:13]} 45. Kxh5 {[%clk 0:00:02]}  h3 {[%clk 0:00:14]} 46. Kg4 {[%clk 0:00:03]}  h2 {[%clk 0:00:12]} 47. Re1 {[%clk 0:00:03]}  Rg3+ {[%clk 0:00:12]} 48. Kxf4 {[%clk 0:00:03]}  Rg1 {[%clk 0:00:13]} 49. Re6+ {[%clk 0:00:03]}  Kd7 {[%clk 0:00:13]} 50. Rh6 {[%clk 0:00:03]}  h1=Q {[%clk 0:00:13]} 51. Rxh1 {[%clk 0:00:02]}  Rxh1 {[%clk 0:00:14]} 0-1


[Site "https://www.chess.com"]

[Event "Titled Tuesday Blitz November 14 Early 2023"]
[White "Hua, Lefong"]
[Black "Szpar, Milosz"]
[WhiteFideId "2602253"]
[BlackFideId "1184989"]
[WhiteElo "2716"]
[BlackElo "2832"]
[Result "0-1"]
[Round "10"]
[TimeControl "180+1"]
[Date "2023.11.14"]
[WhiteClock "0:00:06"]
[BlackClock "0:00:09"]
[Board "32"]

1. d4 {[%clk 0:03:00]}  Nf6 {[%clk 0:02:59]} 2. c4 {[%clk 0:02:59]}  c5 {[%clk 0:02:57]} 3. d5 {[%clk 0:02:59]}  e6 {[%clk 0:02:57]} 4. Nc3 {[%clk 0:02:59]}  exd5 {[%clk 0:02:57]} 5. cxd5 {[%clk 0:03:00]}  d6 {[%clk 0:02:57]} 6. e4 {[%clk 0:03:01]}  g6 {[%clk 0:02:58]} 7. f4 {[%clk 0:03:01]}  Bg7 {[%clk 0:02:57]} 8. Nf3 {[%clk 0:03:01]}  O-O {[%clk 0:02:55]} 9. Be2 {[%clk 0:03:02]}  Nbd7 {[%clk 0:02:51]} 10. O-O {[%clk 0:03:01]}  Re8 {[%clk 0:02:48]} 11. Nd2 {[%clk 0:03:01]}  c4 {[%clk 0:02:47]} 12. a4 {[%clk 0:02:58]}  Nc5 {[%clk 0:02:44]} 13. Bf3 {[%clk 0:02:58]}  Bd7 {[%clk 0:01:50]} 14. e5 {[%clk 0:02:46]}  dxe5 {[%clk 0:01:50]} 15. fxe5 {[%clk 0:02:47]}  Rxe5 {[%clk 0:01:50]} 16. Nxc4 {[%clk 0:02:47]}  Rf5 {[%clk 0:01:48]} 17. Nd6 {[%clk 0:02:32]}  Bxa4 {[%clk 0:01:43]} 18. Nxa4 {[%clk 0:02:10]}  Qxd6 {[%clk 0:01:43]} 19. Nc3 {[%clk 0:02:00]}  a6 {[%clk 0:01:42]} 20. g4 {[%clk 0:01:51]}  Re5 {[%clk 0:01:34]} 21. Bf4 {[%clk 0:01:50]}  Nfd7 {[%clk 0:01:34]} 22. Bxe5 {[%clk 0:01:35]}  Nxe5 {[%clk 0:01:33]} 23. Ne4 {[%clk 0:01:28]}  Qb6 {[%clk 0:01:33]} 24. Nxc5 {[%clk 0:01:26]}  Qxc5+ {[%clk 0:01:31]} 25. Kh1 {[%clk 0:01:24]}  Qd6 {[%clk 0:01:31]} 26. Bg2 {[%clk 0:01:22]}  Re8 {[%clk 0:01:24]} 27. Rc1 {[%clk 0:01:14]}  Rd8 {[%clk 0:01:24]} 28. Qe2 {[%clk 0:01:10]}  h6 {[%clk 0:01:17]} 29. h3 {[%clk 0:01:07]}  Qb4 {[%clk 0:01:13]} 30. Rc2 {[%clk 0:01:03]}  Rd7 {[%clk 0:00:57]} 31. Qe4 {[%clk 0:00:58]}  Qd6 {[%clk 0:00:54]} 32. Rcf2 {[%clk 0:00:54]}  Re7 {[%clk 0:00:53]} 33. Qc2 {[%clk 0:00:49]}  Rc7 {[%clk 0:00:52]} 34. Qd1 {[%clk 0:00:47]}  Nc4 {[%clk 0:00:51]} 35. Qf3 {[%clk 0:00:39]}  Nxb2 {[%clk 0:00:45]} 36. h4 {[%clk 0:00:39]}  Nc4 {[%clk 0:00:37]} 37. h5 {[%clk 0:00:38]}  Ne5 {[%clk 0:00:36]} 38. Qe4 {[%clk 0:00:36]}  Rc4 {[%clk 0:00:35]} 39. Qe2 {[%clk 0:00:32]}  Nxg4 {[%clk 0:00:31]} 40. Bh3 {[%clk 0:00:11]}  Nxf2+ {[%clk 0:00:27]} 41. Rxf2 {[%clk 0:00:12]}  Qxd5+ {[%clk 0:00:17]} 42. Bg2 {[%clk 0:00:09]}  Rc1+ {[%clk 0:00:14]} 43. Kh2 {[%clk 0:00:09]}  Qe5+ {[%clk 0:00:08]} 44. Qxe5 {[%clk 0:00:08]}  Bxe5+ {[%clk 0:00:09]} 45. Kh3 {[%clk 0:00:09]}  Rc3+ {[%clk 0:00:08]} 46. Kg4 {[%clk 0:00:06]}  Rg3+ {[%clk 0:00:09]} 0-1


[Site "https://www.chess.com"]